bitfinex/quotes_SOLUSD_20250611
["timestamp","ask_amount","ask_price","bid_price","bid_amount"]
[1749674988692,25.16,163.08,163.05,18.04998883]
[1749674989394,25.16,163.08,163.06,18.04998883]
[1749674991790,25.16,163.08,163.05,18.04998883]
[1749674992298,25.16,163.08,163.06,18.04998883]
[1749674994700,25.16,163.08,163.05,18.04998883]
[1749674995087,25.16,163.08,163.03,26.0]
[1749674995286,25.16,163.08,163.05,18.04998883]
[1749674995481,25.16,163.08,163.03,26.0]
[1749674995678,25.16,163.08,163.05,18.04998883]
[1749675000585,0.28432314,163.07,163.05,18.04998883]
[1749675000782,18.933972,163.07,163.04,18.04998883]
[1749675001378,18.933972,163.07,163.05,18.04998883]
[1749675001575,0.28432314,163.07,163.05,18.04998883]
[1749675001775,0.28432314,163.07,163.06,18.04998883]
[1749675004292,25.16,163.08,163.06,18.04998883]
[1749675004693,25.16,163.08,163.03,26.0]
[1749675004694,25.44432314,163.08,163.07,18.04998883]
[1749675005686,25.44432314,163.08,163.06,18.04998883]
[1749675006599,25.44432314,163.08,163.03,26.0]
[1749675006600,25.44432314,163.08,163.05,18.04998883]
[1749675008695,25.44432314,163.08,163.03,26.0]
[1749675008900,25.44432314,163.08,163.05,18.04998883]
[1749675013414,25.44432314,163.08,163.05,11.54431932]
[1749675015009,25.44432314,163.08,163.03,26.0]
[1749675015193,25.44432314,163.08,163.05,11.54431932]
[1749675017428,25.16,163.08,163.07,11.54431932]
[1749675017590,18.79181043,163.12,163.07,11.54431932]
[1749675017789,25.16,163.11,163.1,11.54431932]
[1749675018513,25.44432314,163.12,163.1,11.54431932]
[1749675018900,25.44432314,163.12,163.11,1.5317491]
[1749675019221,25.44432314,163.12,163.11,1.53175092]
[1749675019391,25.44432314,163.12,163.11,1.53175042]
[1749675019591,0.28432314,163.12,163.1,11.54431932]
[1749675019796,25.44432314,163.12,163.1,11.54431932]
[1749675020094,25.44432314,163.12,163.11,1.53174715]
[1749675020295,25.44432314,163.12,163.1,11.54431932]
[1749675020499,25.44432314,163.12,163.11,1.53174919]
[1749675020801,25.44432314,163.12,163.11,1.53174849]
[1749675021010,25.44432314,163.12,163.11,1.53174747]
[1749675021209,0.28432314,163.12,163.1,18.02808397]
[1749675021523,25.44432314,163.12,163.11,1.53175647]
[1749675021733,25.44432314,163.12,163.11,1.53175578]
[1749675022218,25.44432314,163.12,163.11,1.53175628]
[1749675022520,25.44432314,163.12,163.11,18.02808397]
[1749675023010,25.44432314,163.12,163.11,19.55984112]
[1749675023210,25.44432314,163.12,163.11,18.02808397]
[1749675023421,25.44432314,163.12,163.11,19.55983333]
[1749675023606,25.44432314,163.12,163.11,1.53175539]
[1749675023934,25.44432314,163.12,163.11,1.53175606]
[1749675024118,25.44432314,163.12,163.1,18.02808397]
[1749675024307,25.44432314,163.12,163.11,1.53175706]
[1749675024495,25.44432314,163.12,163.11,1.53174907]
[1749675024816,0.28432314,163.12,163.11,1.53174907]
[1749675025022,25.42432314,163.12,163.1,18.02808397]
[1749675025234,25.42432314,163.12,163.11,1.53174926]
[1749675025401,25.42432314,163.12,163.11,1.53175706]
[1749675025806,25.42432314,163.12,163.1,18.02808397]
[1749675026121,25.42432314,163.12,163.11,1.53174877]
[1749675026324,25.42432314,163.12,163.11,1.53174826]
[1749675026619,25.42432314,163.12,163.1,18.02808397]
[1749675027021,25.42432314,163.12,163.11,1.53175706]
[1749675028103,25.42432314,163.12,163.1,18.02808397]
[1749675028322,25.42432314,163.12,163.11,1.53175706]
[1749675028526,25.42432314,163.12,163.11,1.53175687]
[1749675029135,25.42432314,163.12,163.11,1.53174907]
[1749675029305,25.42432314,163.12,163.11,19.55983304]
[1749675029500,0.28432314,163.12,163.11,19.55983304]
[1749675029818,18.64964886,163.17,163.11,18.02808397]
[1749675030002,6.1819,163.18,163.15,18.02808397]
[1749675030406,25.14,163.17,163.15,18.02808397]
[1749675030604,6.1819,163.18,163.15,18.02808397]
[1749675030805,0.28432314,163.16,163.12,26.0]
[1749675031022,0.28432314,163.14,163.13,1.53144058]
[1749675031227,0.28432314,163.12,163.09,18.02808397]
[1749675031527,25.14,163.11,163.09,18.02808397]
[1749675031700,25.14,163.11,163.1,1.53173614]
[1749675031898,25.14,163.11,163.1,19.55982011]
[1749675032300,25.14,163.11,163.1,19.55980013]
[1749675032497,25.14,163.11,163.1,19.55980216]
[1749675032897,25.14,163.11,163.1,18.02808397]
[1749675033635,25.14,163.11,163.1,19.5597523]
[1749675033830,25.14,163.11,163.1,19.55975656]
[1749675034333,25.14,163.12,163.1,19.55975656]
[1749675034630,25.14,163.12,163.11,19.55974857]
[1749675034831,18.933972,163.14,163.11,19.55974838]
[1749675035016,25.14,163.13,163.11,18.02808397]
[1749675035939,25.14,163.13,163.1,18.02808397]
[1749675039637,25.14,163.13,163.1,18.02808397]
[1749675039834,0.28432314,163.12,163.1,18.02808397]
[1749675040035,25.14,163.13,163.11,18.02808397]
[1749675040211,0.28432314,163.14,163.12,18.02808397]
[1749675040414,25.42432314,163.14,163.12,18.02808397]
[1749675041339,18.64964886,163.15,163.09,26.0]
[1749675041340,25.14,163.13,163.09,26.0]
[1749675041512,25.14,163.13,163.1,18.02808397]
[1749675043935,18.31240711,163.14,163.09,26.0]
[1749675043936,18.64964886,163.15,163.09,26.0]
[1749675044119,26.0,163.2,163.14,18.02808397]
[1749675044120,18.64964886,163.17,163.14,18.02808397]
[1749675044317,25.24,163.16,163.14,18.02808397]
[1749675044721,25.24,163.16,163.1,26.0]
[1749675044932,0.14216157,163.14,163.1,26.0]
[1749675045118,25.22,163.13,163.11,18.02808397]
[1749675046733,0.14216157,163.14,163.12,18.02808397]
[1749675046940,25.50432314,163.13,163.12,18.02808397]
[1749675047624,25.50432314,163.13,163.11,18.02808397]
[1749675052024,25.50432314,163.13,163.12,18.02808397]
[1749675052430,25.50432314,163.13,163.09,26.0]
[1749675052628,25.50432314,163.13,163.12,18.02808397]
[1749675053347,25.50432314,163.13,163.12,11.53574063]
[1749675054945,25.22,163.13,163.12,11.53574063]
[1749675055648,25.50432314,163.13,163.1,11.53574063]
[1749675056330,18.933972,163.12,163.08,26.0]
[1749675057023,18.933972,163.12,163.08,37.53574063]
[1749675057224,18.933972,163.12,163.08,11.53574063]
[1749675058630,30.46971263,163.12,163.08,11.53574063]
[1749675058839,18.933972,163.12,163.08,11.53574063]
[1749675059335,18.933972,163.12,163.08,18.0322162]
[1749675060449,36.9661882,163.12,163.08,18.0322162]
[1749675061247,18.933972,163.12,163.08,18.0322162]
[1749675062836,36.9661882,163.12,163.05,33.25074434]
[1749675063031,36.9661882,163.1,163.05,49.67466054]
[1749675063236,0.28432314,163.08,163.05,44.0322162]
[1749675064651,0.28432314,163.08,163.06,18.0322162]
[1749675068650,18.933972,163.08,163.04,18.0322162]
[1749675070329,36.9661882,163.08,163.04,18.0322162]
[1749675072028,18.933972,163.08,163.04,18.0322162]
[1749675073055,36.9661882,163.08,163.04,18.0322162]
[1749675073253,36.9661882,163.08,163.02,26.0]
[1749675073254,18.933972,163.08,163.02,26.0]
[1749675073560,25.16,163.09,163.02,18.0322162]
[1749675073561,0.28432314,163.05,163.02,18.0322162]
[1749675073730,25.42432314,163.05,163.02,18.0322162]
[1749675074145,25.42432314,163.05,163.03,18.0322162]
[1749675076648,25.42432314,163.05,162.99,31.64244434]
[1749675076848,25.42432314,163.05,163.02,18.0322162]
[1749675077046,25.42432314,163.05,163.02,34.29786198]
[1749675078556,25.42432314,163.05,163.03,18.0322162]
[1749675079043,25.16,163.05,163.04,18.0322162]
[1749675079361,25.16,163.05,163.04,11.54449444]
[1749675079743,25.16,163.06,163.04,11.54449444]
[1749675082950,25.16,163.06,163.02,26.0]
[1749675083290,25.16,163.06,163.0,26.0]
[1749675083465,0.28432314,163.05,163.03,11.54449444]
[1749675083775,18.933972,163.05,163.02,11.54449444]
[1749675086269,18.933972,163.05,163.0,26.0]
[1749675086471,18.933972,163.05,163.02,11.54449444]
[1749675089647,18.933972,163.05,163.0,26.0]
[1749675089946,18.933972,163.05,163.02,11.54449444]
[1749675091255,18.933972,163.05,163.0,26.0]
[1749675091458,18.933972,163.05,163.02,11.54449444]
[1749675095656,18.933972,163.05,163.01,11.54449444]
[1749675096266,30.47846644,163.05,163.0,11.54449444]
[1749675096664,0.28432314,163.02,162.98,11.54449444]
[1749675096860,0.28432314,163.0,162.98,11.54449444]
[1749675097271,0.28432314,163.0,162.99,11.54449444]
[1749675097475,0.28432314,163.0,162.99,26.74855033]
[1749675100680,0.28432314,163.0,162.99,15.20405589]
[1749675101184,5.28432314,163.0,162.99,15.20405589]
[1749675105758,35.47846644,163.0,162.99,15.20405589]
[1749675107073,60.63846644,163.0,162.99,15.20405589]
[1749675108486,0.28432314,162.98,162.97,8.33333333]
[1749675108689,25.44432314,162.98,162.97,8.33333333]
[1749675113579,25.16,162.98,162.97,19.87782777]
[1749675116988,25.44432314,162.98,162.97,8.33333333]
[1749675117302,44.093972,162.98,162.97,8.33333333]
[1749675120077,25.44432314,162.98,162.97,19.87782777]
[1749675120800,5.0,163.0,162.97,19.87782777]
[1749675120978,25.16,162.99,162.97,8.33333333]
[1749675121173,25.16,162.99,162.98,11.54449444]
[1749675121387,5.0,163.0,162.98,11.54449444]
[1749675121694,5.0,163.0,162.97,8.33333333]
[1749675121695,30.16,163.0,162.99,11.54449444]
[1749675121884,5.0,163.0,162.99,11.54449444]
[1749675122087,30.16,163.0,162.99,11.54449444]
[1749675127475,5.0,163.0,162.99,11.54449444]
[1749675127682,30.16,163.0,162.99,11.54449444]
[1749675131098,5.0,163.0,162.99,11.54449444]
[1749675139089,5.28432314,163.0,162.97,8.33333333]
[1749675139319,0.28432314,162.98,162.97,19.87782777]
[1749675141122,0.28432314,162.98,162.97,8.33333333]
[1749675146590,0.28432314,162.98,162.97,19.87782777]
[1749675146792,0.14216157,162.99,162.97,19.87782777]
[1749675146993,23.64964886,163.0,162.98,11.54449444]
[1749675147202,25.42432314,162.99,162.98,18.05414133]
[1749675147404,25.28216157,162.99,162.98,18.05414133]
[1749675148017,25.14,162.99,162.98,18.05414133]
[1749675148214,25.16,162.99,162.98,19.58684989]
[1749675148401,25.16,162.99,162.98,19.58688968]
[1749675148604,25.16,162.99,162.98,19.58690492]
[1749675148899,25.16,162.99,162.98,19.58690477]
[1749675149091,25.44432314,162.99,162.98,1.53276335]
[1749675149514,25.44432314,162.99,162.98,1.53291297]
[1749675150100,25.44432314,162.99,162.98,1.5329285]
[1749675150314,25.44432314,162.99,162.97,26.38747466]
[1749675150509,25.44432314,162.99,162.98,1.5329365]
[1749675150710,25.44432314,162.99,162.98,1.53293631]
[1749675150899,25.44432314,162.99,162.97,26.38747466]
[1749675151102,25.44432314,162.99,162.98,1.53293631]
[1749675151498,25.44432314,162.99,162.98,1.53288167]
[1749675151821,25.44432314,162.99,162.97,26.38747466]
[1749675152021,25.44432314,162.99,162.98,19.58708435]
[1749675152223,5.0,163.0,162.97,8.33333333]
[1749675152414,5.0,163.0,162.99,18.05414133]
[1749675152610,30.14,163.0,162.99,19.58685887]
[1749675152807,5.0,163.0,162.99,18.05414133]
[1749675153610,5.0,163.0,162.99,19.58650875]
[1749675153817,5.0,163.0,162.99,19.58650883]
[1749675154209,5.0,163.0,162.99,19.586464]
[1749675154422,5.0,163.0,162.99,18.05414133]
[1749675156330,5.0,163.0,162.99,23.73091217]
[1749675163735,5.0,163.0,162.99,18.05414133]
[1749675173327,5.0,163.0,162.99,11.5484469]
[1749675174219,5.0,163.0,162.99,17.22632663]
[1749675176354,5.0,163.0,162.99,11.5484469]
[1749675176637,5.0,163.0,162.99,17.22632663]
[1749675177441,5.0,163.0,162.99,11.5484469]
[1749675178441,5.0,163.0,162.99,17.22632663]
[1749675180836,5.0,163.0,162.99,11.5484469]
[1749675182449,1.5616,163.07,163.02,26.0]
[1749675182744,1.84592314,163.07,163.06,11.5484469]
[1749675183746,1.84592314,163.07,163.05,11.5484469]
[1749675185043,18.64964886,163.08,163.02,26.0]
[1749675185044,0.28432314,163.08,163.06,11.5484469]
[1749675185624,0.28432314,163.08,163.07,11.5484469]
[1749675187557,0.28432314,163.08,163.06,11.5484469]
[1749675190865,18.933972,163.08,163.05,11.5484469]
[1749675191037,30.4824189,163.08,163.04,11.5484469]
[1749675191235,0.28432314,163.05,163.01,37.5484469]
[1749675191556,0.28432314,163.03,163.01,37.5484469]
[1749675192247,0.28432314,163.03,162.97,14.00511904]
[1749675192248,18.64964886,163.02,162.97,8.33333333]
[1749675192448,0.28432314,163.01,162.98,11.5484469]
[1749675193262,0.28432314,163.01,162.98,18.05417999]
[1749675195571,25.40432314,163.01,162.98,18.05417999]
[1749675201465,25.40432314,163.01,162.97,8.33333333]
[1749675201466,18.64964886,163.0,162.97,26.38751332]
[1749675202191,18.64964886,163.0,162.97,8.33333333]
[1749675202673,36.70382885,163.0,162.97,8.33333333]
[1749675203459,18.64964886,162.98,162.97,8.33333333]
[1749675203671,43.78964886,162.98,162.97,8.33333333]
[1749675203973,62.27031356,162.98,162.97,8.33333333]
[1749675206272,25.14,162.98,162.97,8.33333333]
[1749675206482,25.42432314,162.98,162.97,8.33333333]
[1749675208974,18.933972,163.01,162.97,26.38751332]
[1749675209179,25.42432314,163.0,162.99,18.05417999]
[1749675209756,0.28432314,163.0,162.99,18.05417999]
[1749675209956,25.42432314,163.0,162.99,18.05417999]
[1749675210280,11.55299157,163.06,162.99,18.05417999]
[1749675210281,18.64964886,163.05,162.99,18.05417999]
[1749675210482,0.28432314,163.03,163.01,18.05417999]
[1749675211376,0.28432314,163.03,162.97,8.33333333]
[1749675211677,25.14,163.02,163.01,18.05417999]
[1749675212981,0.28432314,163.03,163.01,18.05417999]
[1749675213164,25.14,163.02,163.01,18.05417999]
[1749675213896,25.14,163.02,162.97,8.33333333]
[1749675214075,25.14,163.02,163.0,18.05417999]
[1749675214382,25.14,163.02,163.01,18.05417999]
[1749675214383,25.42432314,163.02,163.01,18.05417999]
[1749675216372,25.42432314,163.02,162.97,8.33333333]
[1749675216565,25.42432314,163.02,163.01,18.05417999]
[1749675218411,0.28432314,163.04,163.01,18.05417999]
[1749675218591,25.40432314,163.03,163.02,18.05417999]
[1749675220788,5.42,163.06,163.02,18.05417999]
[1749675220970,25.40432314,163.05,163.0,14.19268088]
[1749675221563,25.26216157,163.05,163.0,14.19268088]
[1749675222291,25.40432314,163.05,163.04,18.05417999]
[1749675222885,0.28432314,163.05,163.04,18.05417999]
[1749675223466,6.1034,163.07,163.04,18.05417999]
[1749675223662,27.5286,163.1,163.0,14.19268088]
[1749675223663,25.12,163.06,163.0,14.19268088]
[1749675223867,25.12,163.06,163.05,18.05417999]
[1749675226098,25.12,163.07,163.05,18.05417999]
[1749675226394,25.40432314,163.07,163.06,18.05417999]
[1749675229664,0.28432314,163.07,163.06,18.05417999]
[1749675229867,25.40432314,163.07,163.06,18.05417999]
[1749675230070,0.28432314,163.07,163.06,18.05417999]
[1749675236292,25.12,163.08,163.06,18.05417999]
[1749675236480,25.40432314,163.08,163.07,18.05417999]
[1749675237715,25.06654886,163.11,163.07,18.05417999]
[1749675237895,25.40432314,163.1,163.04,18.05417999]
[1749675238575,25.40432314,163.1,163.07,18.05417999]
[1749675238812,0.28432314,163.08,163.0,19.86446659]
[1749675238995,0.28432314,163.06,163.03,26.0]
[1749675239816,0.28432314,163.06,163.05,18.05417999]
[1749675242599,25.12,163.07,163.05,18.05417999]
[1749675242787,25.12,163.07,163.06,18.05417999]
[1749675243195,18.933972,163.1,163.06,18.05417999]
[1749675243508,25.12,163.09,163.08,11.54137993]
[1749675243904,18.933972,163.1,163.08,11.54137993]
[1749675244211,25.12,163.09,163.08,11.54137993]
[1749675245198,25.12,163.09,163.02,26.0]
[1749675245393,25.12,163.09,163.08,18.03335478]
[1749675245808,0.28432314,163.08,163.04,18.03335478]
[1749675246006,0.28432314,163.08,163.07,18.03335478]
[1749675255820,0.28432314,163.08,163.06,18.03335478]
[1749675255992,0.28432314,163.08,163.05,18.03335478]
[1749675256715,0.28432314,163.08,163.06,18.03335478]
[1749675256893,0.28432314,163.08,163.07,18.03335478]
[1749675257914,0.28432314,163.08,163.02,31.66264594]
[1749675258114,0.28432314,163.08,163.06,18.03335478]
[1749675258701,18.933972,163.08,163.02,26.0]
[1749675259008,18.933972,163.08,163.05,18.03335478]
[1749675260603,18.933972,163.08,163.04,18.03335478]
[1749675263104,18.933972,163.08,163.05,18.03335478]
[1749675263813,18.933972,163.08,163.06,18.03335478]
[1749675265345,18.933972,163.08,163.06,11.54407971]
[1749675267732,25.1,163.07,163.06,11.54407971]
[1749675268528,0.28432314,163.06,163.05,11.54407971]
[1749675271723,18.933972,163.06,163.03,11.54407971]
[1749675274340,30.47805171,163.06,163.01,11.54407971]
[1749675274506,0.14216157,163.05,163.0,14.19268088]
[1749675274706,0.28432314,163.03,163.01,11.54407971]
[1749675275034,0.28432314,163.03,163.0,14.19268088]
[1749675275331,0.28432314,163.03,163.02,11.54407971]
[1749675276225,0.28432314,163.03,163.0,14.19268088]
[1749675276842,0.28432314,163.03,163.02,11.54407971]
[1749675278024,0.28432314,163.03,163.01,11.54407971]
[1749675278219,0.28432314,163.03,163.02,11.54407971]
[1749675281646,25.1,163.04,163.02,11.54407971]
[1749675281816,175.1,163.1,163.03,11.54407971]
[1749675281817,5.4,163.09,163.03,11.54407971]
[1749675282016,5.4,163.09,163.0,45.85532682]
[1749675282017,24.04964886,163.09,163.08,11.54407971]
[1749675282230,49.14964886,163.09,163.08,11.54407971]
[1749675282427,5.4,163.09,163.08,11.54407971]
[1749675282639,30.5,163.09,163.08,11.54407971]
[1749675282821,30.78432314,163.09,163.08,11.54407971]
[1749675283137,5.54216157,163.09,163.08,11.54407971]
[1749675283923,5.68432314,163.09,163.08,11.54407971]
[1749675284847,5.68432314,163.09,163.04,72.17631884]
[1749675284848,0.28432314,163.08,163.04,72.17631884]
[1749675285142,0.28432314,163.08,163.07,11.54407971]
[1749675289158,0.28432314,163.08,163.04,26.0]
[1749675289364,0.28432314,163.08,163.07,11.54407971]
[1749675289663,25.1,163.1,163.07,11.54407971]
[1749675290748,25.1,163.1,163.04,26.0]
[1749675290927,25.1,163.1,163.07,11.54407971]
[1749675296354,25.1,163.1,163.06,11.54407971]
[1749675297151,18.933972,163.09,163.06,11.54407971]
[1749675299042,18.933972,163.09,163.04,26.0]
[1749675299250,18.933972,163.09,163.05,11.54407971]
[1749675299757,18.933972,163.09,163.06,11.54407971]
[1749675300249,1.72056157,163.08,163.01,5.66264594]
[1749675300552,1.72056157,163.08,163.0,14.19268088]
[1749675300553,18.79181043,163.05,163.0,19.85532682]
[1749675300742,18.79181043,163.05,163.02,11.54407971]
[1749675304463,0.28432314,163.03,163.02,11.54407971]
[1749675306557,0.28432314,163.03,163.0,14.19268088]
[1749675306858,0.28432314,163.03,163.02,11.54407971]
[1749675307247,0.28432314,163.03,163.0,14.19268088]
[1749675307447,0.28432314,163.03,163.0,25.73676059]
[1749675308837,18.933972,163.01,163.0,14.19268088]
[1749675309044,44.013972,163.01,163.0,14.19268088]
[1749675310157,50.14856496,163.01,162.97,19.87741304]
[1749675310363,61.69264467,163.01,162.97,19.87741304]
[1749675316071,61.69264467,163.01,162.97,8.33333333]
[1749675316282,61.69264467,163.01,162.97,19.87741304]
[1749675322048,61.69264467,163.01,162.97,8.33333333]
[1749675322267,61.69264467,163.01,162.97,19.87741304]
[1749675324575,50.14856496,163.01,162.97,8.33333333]
[1749675324876,50.14856496,163.01,162.98,11.54407971]
[1749675325657,50.14856496,163.01,162.97,8.33333333]
[1749675325865,50.14856496,163.01,162.98,11.54407971]
[1749675327368,6.4189161,163.01,162.99,11.54407971]
[1749675327582,25.38432314,163.0,162.99,11.54407971]
[1749675327765,0.14216157,163.0,162.99,11.54407971]
[1749675328069,25.24216157,163.0,162.99,11.54407971]
[1749675328276,25.38432314,163.0,162.99,11.54407971]
[1749675328582,0.28432314,163.0,162.99,11.54407971]
[1749675328757,31.51929246,163.0,162.98,11.54407971]
[1749675330066,31.51929246,163.0,162.99,11.54407971]
[1749675330469,31.51929246,163.0,162.98,11.54407971]
[1749675331566,0.28432314,162.99,162.97,8.33333333]
[1749675331763,25.38432314,162.98,162.97,8.33333333]
[1749675332675,31.52004531,162.98,162.97,8.33333333]
[1749675336376,61.71377388,162.98,162.97,8.33333333]
[1749675336785,61.85593545,162.98,162.97,8.33333333]
[1749675339065,55.72021328,162.98,162.97,8.33333333]
[1749675340984,44.17613357,162.98,162.97,8.33333333]
[1749675341180,18.64964886,163.02,162.97,19.87741304]
[1749675341362,25.1,163.01,162.99,11.54407971]
[1749675341680,0.28432314,163.0,162.98,11.54407971]
[1749675341854,25.1,162.99,162.98,11.54407971]
[1749675343083,25.08,162.99,162.98,11.54407971]
[1749675343383,25.08,162.99,162.98,19.58676011]
[1749675343755,25.08,162.99,162.98,18.05393412]
[1749675344152,25.08,162.99,162.98,19.58673936]
[1749675344957,25.08,162.99,162.98,18.05393412]
[1749675345359,25.08,162.99,162.98,19.58673936]
[1749675345557,25.08,162.99,162.98,18.05393412]
[1749675345774,25.08,162.99,162.98,19.58673156]
[1749675345962,18.933972,163.05,162.98,1.53279744]
[1749675346170,25.08,163.04,163.01,18.05393412]
[1749675346381,25.08,163.03,163.0,18.05393412]
[1749675346598,25.08,163.03,163.01,1.53270838]
[1749675346763,25.08,163.03,163.02,1.53268424]
[1749675346964,0.28432314,163.02,163.01,18.05393412]
[1749675349186,0.28432314,163.04,163.01,18.05393412]
[1749675349489,25.08,163.03,163.02,18.05393412]
[1749675349664,0.28432314,163.02,163.01,18.05393412]
[1749675350576,25.36432314,163.02,163.01,18.05393412]
[1749675350774,26.0,163.06,163.01,18.05393412]
[1749675351093,25.36432314,163.05,163.03,18.05393412]
[1749675353512,0.28432314,163.05,163.03,18.05393412]
[1749675353695,0.28432314,163.04,163.03,18.05393412]
[1749675353871,25.36432314,163.04,163.03,19.58658463]
[1749675354068,172.55393412,163.09,163.03,19.58658463]
[1749675354273,154.5,163.09,163.07,18.05393412]
[1749675354489,25.08,163.08,163.07,18.05393412]
[1749675354700,0.28432314,163.08,163.07,1.53231347]
[1749675354908,25.36432314,163.08,163.07,19.58624762]
[1749675355076,25.36432314,163.08,163.07,19.58620481]
[1749675355270,25.36432314,163.08,163.07,19.58615259]
[1749675355499,25.36432314,163.08,163.07,18.05393412]
[1749675355686,25.36432314,163.08,163.07,19.58615259]
[1749675356507,25.36432314,163.08,163.07,18.05393412]
[1749675356872,0.28432314,163.08,163.07,19.58615259]
[1749675357072,25.36432314,163.08,163.07,19.58615259]
[1749675357273,25.36432314,163.08,163.07,18.05393412]
[1749675357881,25.36432314,163.08,163.07,19.58615259]
[1749675358378,25.36432314,163.08,163.07,18.05393412]
[1749675358576,25.36432314,163.08,163.07,19.5861448]
[1749675359580,25.36432314,163.08,163.07,19.58615442]
[1749675359786,25.36432314,163.08,163.07,18.05393412]
[1749675360309,25.36432314,163.08,163.07,19.58616039]
[1749675360893,25.36432314,163.08,163.07,18.05393412]
[1749675361099,25.36432314,163.08,163.07,19.58616039]
[1749675361604,0.28432314,163.08,163.07,19.58609024]
[1749675361803,25.36432314,163.08,163.07,19.58605052]
[1749675362098,25.08,163.08,163.07,19.58605052]
[1749675362312,25.08,163.08,163.07,18.05393412]
[1749675362508,25.08,163.09,163.07,19.5860475]
[1749675362693,25.36432314,163.09,163.08,19.58600442]
[1749675362892,25.36432314,163.09,163.08,19.5860042]
[1749675363089,25.36432314,163.09,163.04,18.05393412]
[1749675363409,25.36432314,163.09,163.08,18.05393412]
[1749675363713,25.08,163.09,163.08,18.05393412]
[1749675363886,25.08,163.09,163.08,19.58579909]
[1749675364087,0.14216157,163.12,163.08,18.05393412]
[1749675364413,25.08,163.1,163.09,18.05393412]
[1749675364598,25.08,163.1,163.09,19.58578341]
[1749675364899,25.22216157,163.1,163.09,19.58573638]
[1749675365083,25.36432314,163.1,163.09,18.05393412]
[1749675365283,25.36432314,163.1,163.09,19.58574417]
[1749675365491,25.36432314,163.1,163.09,19.58576438]
[1749675365688,0.28432314,163.09,163.07,18.05393412]
[1749675366091,20.25374886,163.14,163.08,18.05393412]
[1749675366279,20.25374886,163.14,163.09,1.53180969]
[1749675366280,0.28432314,163.12,163.09,1.53180969]
[1749675366474,25.36432314,163.11,163.1,18.05393412]
[1749675366681,25.34432314,163.11,163.1,18.05393412]
[1749675366909,1.5342,163.18,163.1,19.58574175]
[1749675367079,43.85181043,163.15,163.11,19.58561922]
[1749675367283,0.14216157,163.14,163.12,1.5316851]
[1749675367482,0.14216157,163.14,163.13,19.58561922]
[1749675367696,25.20216157,163.14,163.13,19.58561922]
[1749675367916,25.20216157,163.14,163.13,19.5856008]
[1749675368091,25.20216157,163.14,163.13,1.53166668]
[1749675368291,0.14216157,163.13,163.12,18.05393412]
[1749675368485,25.20216157,163.13,163.12,18.05393412]
[1749675368707,25.20216157,163.13,163.12,1.53161566]
[1749675368708,25.34432314,163.13,163.12,1.53161566]
[1749675369005,43.993972,163.13,163.09,18.05393412]
[1749675369185,43.993972,163.13,163.1,1.53172217]
[1749675369380,43.993972,163.13,163.11,1.53162908]
[1749675369381,18.79181043,163.12,163.11,1.53162908]
[1749675369588,18.933972,163.12,163.11,1.53162908]
[1749675369787,18.933972,163.12,163.11,1.53172404]
[1749675370713,18.933972,163.12,163.11,1.5317445]
[1749675371016,18.933972,163.12,163.07,26.0]
[1749675371215,0.28432314,163.1,163.09,18.05393412]
[1749675371714,0.28432314,163.1,163.09,19.58567938]
[1749675371899,0.28432314,163.1,163.09,19.58567158]
[1749675372694,0.28432314,163.1,163.09,19.58567938]
[1749675372918,0.28432314,163.1,163.09,18.05393412]
[1749675373215,0.28432314,163.1,163.09,19.58567158]
[1749675373398,0.28432314,163.1,163.09,18.05393412]
[1749675373811,25.06,163.1,163.09,18.05393412]
[1749675374188,18.05393412,163.15,163.09,18.05393412]
[1749675374189,0.14216157,163.13,163.09,18.05393412]
[1749675374416,11.91896157,163.16,163.12,18.05393412]
[1749675374417,5.4,163.16,163.12,18.05393412]
[1749675374607,5.4,163.16,163.15,18.05393412]
[1749675374791,30.46,163.16,163.15,18.05393412]
[1749675374996,25.06,163.16,163.15,18.05393412]
[1749675375212,25.34432314,163.16,163.15,18.05393412]
[1749675375396,25.06,163.16,163.15,18.05393412]
[1749675375808,25.06,163.16,163.09,1.6482]
[1749675375809,0.28432314,163.15,163.14,18.05393412]
[1749675376112,0.28432314,163.15,163.14,32.16231329]
[1749675377223,25.34432314,163.15,163.14,32.16231329]
[1749675378710,25.34432314,163.15,163.14,18.05393412]
[1749675379706,25.34432314,163.15,163.09,1.6482]
[1749675380022,25.34432314,163.15,163.14,32.01308105]
[1749675380615,0.28432314,163.17,163.14,32.01308105]
[1749675380808,0.28432314,163.15,163.14,32.01308105]
[1749675384630,0.28432314,163.15,163.14,13.95914693]
[1749675390715,36.98790612,163.15,163.14,13.95914693]
[1749675392135,18.933972,163.15,163.14,13.95914693]